bitfinex/quotes_BTCUSD_20241002
["timestamp","ask_amount","ask_price","bid_price","bid_amount"]
[1727904567923,0.0002,60959.0,60958.0,1.02477398]
[1727904568357,0.0002,60959.0,60958.0,1.02977398]
[1727904568779,0.0002,60959.0,60958.0,1.03077398]
[1727904570485,0.0002,60959.0,60958.0,1.03107473]
[1727904571347,0.001017,60959.0,60958.0,1.03107473]
[1727904571569,0.001017,60959.0,60958.0,1.12637473]
[1727904572253,0.001017,60959.0,60958.0,1.09837473]
[1727904572524,0.001017,60959.0,60958.0,1.08437473]
[1727904572727,0.001017,60959.0,60958.0,0.98972446]
[1727904572950,0.001017,60959.0,60958.0,1.01577398]
[1727904573456,0.001017,60959.0,60958.0,1.02977398]
[1727904574789,0.001017,60959.0,60958.0,0.98877398]
[1727904575015,0.001017,60959.0,60958.0,1.10257398]
[1727904575250,0.001017,60959.0,60958.0,1.11657398]
[1727904575460,0.001017,60959.0,60958.0,1.10257398]
[1727904575665,0.001017,60959.0,60958.0,1.18018957]
[1727904575870,0.001017,60959.0,60958.0,1.16618957]
[1727904576512,0.001017,60959.0,60958.0,1.18018957]
[1727904576737,0.001017,60959.0,60958.0,1.19418957]
[1727904577167,0.001017,60959.0,60958.0,1.19449032]
[1727904579644,0.0001,60973.0,60958.0,1.19449032]
[1727904579645,0.0001,60973.0,60972.0,0.287009]
[1727904579865,0.0001,60973.0,60972.0,0.96448157]
[1727904580743,0.0001,60973.0,60972.0,1.28881219]
[1727904580956,0.0001,60973.0,60972.0,1.05658157]
[1727904581398,0.0001,60973.0,60972.0,1.07058157]
[1727904581626,0.0001,60973.0,60972.0,1.07158157]
[1727904582245,0.0001,60973.0,60972.0,1.11740683]
[1727904582689,0.0001,60973.0,60972.0,1.07158157]
[1727904583158,0.0001,60973.0,60972.0,1.07058157]
[1727904583395,0.000917,60973.0,60972.0,1.07058157]
[1727904583638,0.000917,60973.0,60972.0,1.07188232]
[1727904583867,0.000917,60973.0,60972.0,1.11766693]
[1727904584090,0.000917,60973.0,60972.0,1.07158157]
[1727904584520,0.000917,60973.0,60972.0,1.07058157]
[1727904585408,0.000917,60973.0,60972.0,1.07188232]
[1727904585623,0.000917,60973.0,60972.0,1.07658157]
[1727904585848,0.000917,60973.0,60972.0,1.08092697]
[1727904586293,0.000917,60973.0,60972.0,1.08122772]
[1727904586731,0.000917,60973.0,60972.0,1.06722772]
[1727904587826,0.000917,60973.0,60972.0,1.08122772]
[1727904588054,0.000917,60973.0,60972.0,1.09522772]
[1727904588487,0.000917,60973.0,60972.0,1.08122772]
[1727904588913,0.000917,60973.0,60972.0,1.06722772]
[1727904589149,0.000917,60973.0,60972.0,1.08122772]
[1727904590444,0.000917,60973.0,60972.0,1.06722772]
[1727904590874,0.0161198,60978.0,60977.0,0.00630075]
[1727904591091,0.0161198,60978.0,60977.0,1.15033932]
[1727904591993,0.000817,60988.0,60987.0,0.291969]
[1727904592221,0.000817,60988.0,60987.0,1.1914099]
[1727904592436,0.24643062,60999.0,60998.0,0.45020486]
[1727904592658,0.24643062,60999.0,60998.0,0.94127157]
[1727904592926,0.0002,60999.0,60998.0,0.94127157]
[1727904594005,0.0002,60999.0,60998.0,0.94227157]
[1727904594217,0.0002,60999.0,60998.0,0.94127157]
[1727904594454,0.0002,60999.0,60998.0,1.03857157]
[1727904594922,0.0002,60999.0,60998.0,1.13507157]
[1727904595152,0.0002,60999.0,60998.0,1.14907157]
[1727904595406,0.0002,60999.0,60998.0,1.03857157]
[1727904595621,0.0002,60999.0,60998.0,1.05257157]
[1727904595880,0.0002,60999.0,60998.0,1.03857157]
[1727904596110,0.0002,60999.0,60998.0,1.03957157]
[1727904596331,0.0002,60999.0,60998.0,1.04389324]
[1727904596549,0.0002,60999.0,60998.0,1.04289324]
[1727904597180,0.0002,60999.0,60998.0,1.05689324]
[1727904597398,0.0002,60999.0,60998.0,1.04289324]
[1727904597607,0.001017,60999.0,60998.0,1.05689324]
[1727904598437,0.001017,60999.0,60998.0,1.05819399]
[1727904600124,0.001017,60999.0,60998.0,1.12911894]
[1727904600361,0.001017,60999.0,60998.0,1.08619399]
[1727904602664,0.001017,60999.0,60998.0,1.08489324]
[1727904603204,0.001017,60999.0,60998.0,1.08589324]
[1727904603423,0.001017,60999.0,60998.0,1.08489324]
[1727904603677,0.001017,60999.0,60998.0,0.79232738]
[1727904603911,0.001017,60999.0,60998.0,0.79332738]
[1727904604381,0.001017,60999.0,60998.0,0.79232738]
[1727904605261,0.001017,60999.0,60998.0,0.78732738]
[1727904606397,0.001017,60999.0,60998.0,0.79232738]
[1727904606605,0.001017,60999.0,60998.0,0.79332738]
[1727904607041,0.001017,60999.0,60998.0,0.78832738]
[1727904607255,0.001017,60999.0,60998.0,0.79332738]
[1727904608153,0.001017,60999.0,60998.0,0.80232738]
[1727904608383,0.001017,60999.0,60998.0,0.87872738]
[1727904608594,0.001017,60999.0,60998.0,0.89272738]
[1727904609462,0.001017,60999.0,60998.0,0.89302813]
[1727904609919,0.001017,60999.0,60998.0,0.87902813]
[1727904610140,0.001017,60999.0,60998.0,0.89302813]
[1727904610562,0.001017,60999.0,60998.0,0.87902813]
[1727904610772,0.001017,60999.0,60998.0,0.89272738]
[1727904611004,0.001017,60999.0,60998.0,0.87872738]
[1727904611230,0.001017,60999.0,60998.0,0.86472738]
[1727904611441,0.000817,61009.0,61007.0,0.001]
[1727904611662,0.000817,61009.0,61008.0,0.94249532]
[1727904611885,0.000817,61009.0,61008.0,0.94119457]
[1727904614078,0.000817,61009.0,61008.0,0.97019457]
[1727904614285,0.000817,61009.0,61008.0,0.97049532]
[1727904616515,0.000817,61009.0,61008.0,0.97474381]
[1727904621561,0.000817,61009.0,61008.0,0.91461918]
[1727904622814,0.000817,61009.0,61008.0,0.90061918]
[1727904623028,0.000817,61009.0,61008.0,0.91461918]
[1727904623246,0.000817,61009.0,61008.0,0.90061918]
[1727904623465,0.000817,61009.0,61008.0,0.91461918]
[1727904623963,0.000817,61009.0,61008.0,0.88661918]
[1727904624613,0.000817,61009.0,61008.0,0.90061918]
[1727904625065,0.000817,61009.0,61008.0,0.88661918]
[1727904625285,0.000817,61009.0,61008.0,0.91461918]
[1727904625751,0.000817,61009.0,61008.0,0.90061918]
[1727904625970,0.000817,61009.0,61008.0,0.91461918]
[1727904626190,0.000817,61009.0,61008.0,0.91961918]
[1727904626416,0.000817,61009.0,61008.0,0.94261918]
[1727904626633,0.000817,61009.0,61008.0,0.91461918]
[1727904626851,0.000817,61009.0,61008.0,0.92861918]
[1727904627293,0.000817,61009.0,61008.0,0.94261918]
[1727904628220,0.000817,61009.0,61008.0,0.94131843]
[1727904628451,0.000817,61009.0,61008.0,0.94261918]
[1727904629150,0.000817,61009.0,61008.0,0.92861918]
[1727904629369,0.000817,61009.0,61008.0,0.92731843]
[1727904629598,0.000817,61009.0,61008.0,0.91331843]
[1727904629822,0.000817,61009.0,61008.0,0.92731843]
[1727904630261,0.000817,61009.0,61008.0,0.94131843]
[1727904630482,0.000817,61009.0,61008.0,0.94261918]
[1727904632357,0.000817,61009.0,61008.0,0.92861918]
[1727904633075,0.000817,61009.0,61008.0,0.94261918]
[1727904633556,0.000817,61009.0,61008.0,0.92861918]
[1727904634556,0.000817,61009.0,61008.0,0.94261918]
[1727904636099,0.000817,61009.0,61008.0,0.99154621]
[1727904636376,0.000817,61009.0,61008.0,0.94261918]
[1727904636635,0.000817,61009.0,61008.0,0.99157269]
[1727904636872,0.000817,61009.0,61008.0,0.99157258]
[1727904637116,0.000817,61009.0,61008.0,0.99157044]
[1727904637390,0.000817,61009.0,61008.0,1.01604742]
[1727904638887,0.000817,61009.0,61008.0,1.43227804]
[1727904639131,0.000817,61009.0,61008.0,1.23397237]
[1727904639399,0.000817,61020.0,61018.0,0.001]
[1727904639665,0.000817,61020.0,61018.0,0.55421394]
[1727904639899,0.000817,61020.0,61018.0,0.88198394]
[1727904641134,0.000817,61020.0,61018.0,0.89598394]
[1727904641388,0.000817,61020.0,61018.0,0.90998394]
[1727904645132,0.000817,61020.0,61018.0,0.90898394]
[1727904646891,0.000817,61020.0,61018.0,0.91330158]
[1727904647143,0.001017,61019.0,61018.0,0.91330158]
[1727904647890,0.001017,61019.0,61018.0,0.91430158]
[1727904648580,0.001017,61019.0,61018.0,0.91330158]
[1727904649127,0.001017,61019.0,61018.0,0.99590158]
[1727904649346,0.001017,61019.0,61018.0,0.91330158]
[1727904649822,0.001017,61019.0,61018.0,0.91430158]
[1727904651373,0.001017,61019.0,61018.0,0.91330158]
[1727904653138,0.001017,61019.0,61018.0,1.00490158]
[1727904653362,0.001017,61019.0,61018.0,1.02920233]
[1727904655001,0.001017,61019.0,61018.0,1.214556]
[1727904655476,0.001017,61019.0,61018.0,1.23906941]
[1727904655701,0.001017,61019.0,61018.0,1.11650233]
[1727904655899,0.001017,61019.0,61018.0,1.10250233]
[1727904656120,0.001017,61019.0,61018.0,1.11650233]
[1727904656332,0.001017,61019.0,61018.0,1.26353153]
[1727904656573,0.002,61032.0,61031.0,0.164851]
[1727904656805,0.002,61032.0,61031.0,0.95897174]
[1727904657043,0.002,61032.0,61031.0,0.95697894]
[1727904657247,0.002,61032.0,61031.0,1.03039738]
[1727904658344,0.002,61032.0,61031.0,1.19476626]
[1727904658545,0.002,61032.0,61031.0,1.19460775]
[1727904658760,0.002,61032.0,61031.0,1.2192629]
[1727904659220,0.34443062,61057.0,61055.0,0.163786]
[1727904659453,0.0001,61056.0,61055.0,0.491356]
[1727904660808,0.0001,61056.0,61055.0,0.73758662]
[1727904661041,0.0001,61056.0,61055.0,0.491356]
[1727904661250,0.0001,61056.0,61055.0,0.519356]
[1727904661917,0.0001,61056.0,61055.0,0.505356]
[1727904662143,0.0001,61056.0,61055.0,0.605356]
[1727904662848,0.0001,61056.0,61055.0,0.73149723]
[1727904663705,0.0001,61056.0,61055.0,0.605356]
[1727904663923,0.0001,61056.0,61055.0,0.619356]
[1727904668417,0.0001,61056.0,61055.0,0.74549723]
[1727904671573,0.12694048,61056.0,61055.0,0.35557]
[1727904671798,0.46232448,61056.0,61055.0,0.35557]
[1727904673304,0.46232448,61056.0,61055.0,0.34157]
[1727904673751,0.46232448,61056.0,61055.0,0.34957]
[1727904673980,0.46232448,61056.0,61055.0,0.32757]
[1727904674212,0.46232448,61056.0,61055.0,0.34157]
[1727904674676,0.46232448,61056.0,61055.0,0.32757]
[1727904674893,0.46232448,61056.0,61055.0,0.33057]
[1727904675160,0.46232448,61056.0,61055.0,0.33157]
[1727904675420,0.46232448,61056.0,61055.0,0.33357]
[1727904676591,0.46232448,61056.0,61055.0,0.32957]
[1727904676810,0.46232448,61056.0,61055.0,0.33257]
[1727904677274,0.4880047,61056.0,61055.0,0.33257]
[1727904677520,0.46232448,61056.0,61055.0,0.33257]
[1727904679384,0.33618325,61056.0,61055.0,0.33257]
[1727904679607,0.0001,61056.0,61055.0,0.33257]
[1727904679857,0.00079925,61056.0,61055.0,0.496356]
[1727904684145,0.0001,61056.0,61055.0,0.496356]
[1727904684360,0.000917,61056.0,61055.0,0.496356]
[1727904687585,0.00161625,61056.0,61055.0,0.496356]
[1727904688250,0.000917,61056.0,61055.0,0.496356]
[1727904693754,0.000917,61056.0,61055.0,0.491356]
[1727904693969,0.000917,61056.0,61055.0,0.505356]
[1727904695150,0.000917,61056.0,61055.0,0.519356]
[1727904695649,0.000917,61056.0,61055.0,0.505356]
[1727904696829,0.000917,61056.0,61055.0,0.519356]
[1727904697054,0.000917,61056.0,61055.0,0.533356]
[1727904697505,0.000917,61056.0,61055.0,0.703956]
[1727904698265,0.000917,61056.0,61055.0,0.689956]
[1727904698508,0.000917,61056.0,61055.0,0.703956]
[1727904699274,0.000917,61056.0,61055.0,0.675956]
[1727904699741,0.000917,61056.0,61055.0,0.661956]
[1727904700227,0.000917,61056.0,61055.0,0.675956]
[1727904700494,0.000917,61056.0,61055.0,0.689956]
[1727904705213,0.000917,61056.0,61055.0,0.597456]
[1727904715888,0.00161625,61056.0,61055.0,0.597456]
[1727904716391,0.000917,61056.0,61055.0,0.597456]
[1727904717086,0.000917,61056.0,61055.0,0.519356]
[1727904718944,0.00161625,61056.0,61055.0,0.519356]
[1727904720600,0.02729213,61056.0,61055.0,0.519356]
[1727904721099,0.02659288,61056.0,61055.0,0.519356]
[1727904723587,0.02659288,61056.0,61055.0,0.612156]
[1727904723810,0.02659288,61056.0,61055.0,0.519356]
[1727904724056,0.000917,61056.0,61055.0,0.519356]
[1727904727131,0.02659223,61056.0,61055.0,0.519356]
[1727904728225,0.000917,61056.0,61055.0,0.519356]
[1727904731657,0.02659249,61056.0,61055.0,0.519356]
[1727904737186,0.000917,61056.0,61055.0,0.519356]
[1727904740005,0.00161625,61056.0,61055.0,0.519356]
[1727904740223,0.02729267,61056.0,61055.0,0.519356]
[1727904740893,0.02729267,61056.0,61055.0,0.35557]
[1727904741342,0.00161625,61056.0,61055.0,0.35557]
[1727904741573,0.16540025,61056.0,61055.0,0.35557]
[1727904741976,0.164701,61056.0,61055.0,0.35557]
[1727904742265,0.24430025,61056.0,61055.0,0.35557]
[1727904742489,0.31740112,61056.0,61055.0,0.35557]
[1727904742928,0.31740112,61056.0,61055.0,0.34157]
[1727904742929,0.34269917,61056.0,61055.0,0.34157]
[1727904743155,0.4612989,61056.0,61055.0,0.35557]
[1727904743378,0.46125425,61056.0,61055.0,0.35557]
[1727904743604,0.46125425,61056.0,61055.0,0.32757]
[1727904743828,0.46125425,61056.0,61055.0,0.33757]
[1727904744057,0.33830025,61056.0,61055.0,0.33757]
[1727904744281,0.33830025,61056.0,61055.0,0.35157]
[1727904744496,0.48689225,61056.0,61055.0,0.35157]
[1727904744743,0.4123017,61056.0,61055.0,0.33757]
[1727904744963,0.4123017,61056.0,61055.0,0.34757]
[1727904745631,0.38662158,61056.0,61055.0,0.34757]
[1727904745867,0.51276281,61056.0,61055.0,0.34757]
[1727904746316,0.63559043,61056.0,61055.0,0.34757]
[1727904746535,0.46444148,61056.0,61055.0,0.34757]
[1727904746754,0.4837988,61056.0,61055.0,0.34757]
[1727904746964,0.38554148,61056.0,61055.0,0.34757]
[1727904747240,0.45923355,61056.0,61055.0,0.34757]
[1727904747454,0.4837988,61056.0,61055.0,0.34757]
[1727904747677,0.38554148,61056.0,61055.0,0.34757]
[1727904748323,0.48378002,61056.0,61055.0,0.34757]
[1727904748787,0.50946008,61056.0,61055.0,0.34757]
[1727904749465,0.41122154,61056.0,61055.0,0.34757]
[1727904749692,0.50946008,61056.0,61055.0,0.34757]
[1727904749919,0.48378002,61056.0,61055.0,0.34757]
[1727904750585,0.38554148,61056.0,61055.0,0.34757]
[1727904752324,0.45916755,61056.0,61055.0,0.34757]
[1727904755331,0.38554148,61056.0,61055.0,0.34757]
[1727904756937,0.25940025,61056.0,61055.0,0.34757]
[1727904757167,0.38554148,61056.0,61055.0,0.34757]
[1727904757636,0.46027683,61056.0,61055.0,0.34757]
[1727904759200,0.41122144,61056.0,61055.0,0.34757]
[1727904762857,0.31722144,61056.0,61055.0,0.34757]
[1727904763057,0.29154148,61056.0,61055.0,0.34757]
[1727904763472,0.29104148,61056.0,61055.0,0.34757]
[1727904766398,0.3167213,61056.0,61055.0,0.34757]
[1727904767048,0.3117213,61056.0,61055.0,0.34757]
[1727904770416,0.36078669,61056.0,61055.0,0.34757]
[1727904770854,0.3117213,61056.0,61055.0,0.34757]
[1727904771327,0.36078669,61056.0,61055.0,0.34757]
[1727904771763,0.3117213,61056.0,61055.0,0.34757]
[1727904772451,0.36078669,61056.0,61055.0,0.34757]
[1727904773955,0.33510687,61056.0,61055.0,0.34757]
[1727904774404,0.38345278,61056.0,61055.0,0.34757]
[1727904774845,0.4079767,61056.0,61055.0,0.34757]
[1727904775263,0.33438739,61056.0,61055.0,0.34757]
[1727904776618,0.36006594,61056.0,61055.0,0.34757]
[1727904776840,0.36006594,61056.0,61055.0,0.349204]
[1727904777089,0.36088294,61056.0,61055.0,0.349204]
[1727904777339,0.45900202,61056.0,61055.0,0.349204]
[1727904780314,0.36088294,61056.0,61055.0,0.349204]
[1727904781377,0.48353179,61056.0,61055.0,0.349204]
[1727904782904,0.45785324,61056.0,61055.0,0.349204]
[1727904783345,0.33520439,61056.0,61055.0,0.349204]
[1727904785323,0.36088359,61056.0,61055.0,0.349204]
[1727904785749,0.33520439,61056.0,61055.0,0.349204]
[1727904785957,0.36088355,61056.0,61055.0,0.349204]
[1727904787254,0.50806217,61056.0,61055.0,0.349204]
[1727904789198,0.36088355,61056.0,61055.0,0.349204]
[1727904789612,0.50860506,61056.0,61055.0,0.349204]
[1727904790026,0.36088355,61056.0,61055.0,0.349204]
[1727904792321,0.50860968,61056.0,61055.0,0.349204]
[1727904796427,0.50860911,61056.0,61055.0,0.349204]
[1727904797516,0.50860998,61056.0,61055.0,0.349204]
[1727904797718,0.36088355,61056.0,61055.0,0.349204]
[1727904798522,0.45998355,61056.0,61055.0,0.349204]
[1727904798739,0.61450439,61056.0,61055.0,0.349204]
[1727904799596,0.61450439,61056.0,61055.0,0.339204]
[1727904800018,0.61450439,61056.0,61055.0,0.329204]
[1727904800214,0.61450439,61056.0,61055.0,0.333204]
[1727904800920,0.61450439,61056.0,61055.0,0.329204]
[1727904801152,0.61650439,61056.0,61055.0,0.329204]
[1727904802184,0.64518597,61056.0,61055.0,0.329204]
[1727904802805,0.64218597,61056.0,61055.0,0.329204]
[1727904803013,0.64518597,61056.0,61055.0,0.329204]
[1727904803227,0.7826911,61056.0,61055.0,0.329204]
[1727904803431,0.7876911,61056.0,61055.0,0.329204]
[1727904803858,0.7876911,61056.0,61039.0,0.24786462]
[1727904803859,0.16452525,61040.0,61039.0,0.24786462]
[1727904804077,0.29166648,61040.0,61039.0,0.24786462]
[1727904804304,0.34002361,61040.0,61039.0,0.24786462]
[1727904804512,0.42212361,61040.0,61039.0,0.001634]
[1727904804725,0.42112361,61040.0,61039.0,0.001634]
[1727904804933,0.61432361,61040.0,61039.0,0.001634]
[1727904805645,0.63732361,61040.0,61039.0,0.001634]
[1727904805863,0.63732361,61040.0,61039.0,0.008634]
[1727904806297,0.71260626,61040.0,61039.0,0.001634]
[1727904806513,0.7382968,61040.0,61039.0,0.001634]
[1727904806728,0.66901415,61040.0,61039.0,0.002634]
[1727904806962,0.67701415,61040.0,61039.0,0.003634]
[1727904807181,0.66301415,61040.0,61039.0,0.001634]
[1727904807398,0.16456325,61026.0,61025.0,0.24623062]
[1727904807610,0.29070448,61026.0,61025.0,0.57396062]
[1727904807826,0.29070448,61026.0,61025.0,0.32773]
[1727904808057,0.31639737,61026.0,61025.0,0.32773]
[1727904809447,0.41179737,61026.0,61025.0,0.32773]
[1727904809659,0.41379737,61026.0,61025.0,0.33173]
[1727904809880,0.53679737,61026.0,61025.0,0.33573]
[1727904810093,0.00069925,61010.0,61009.0,0.080234]
[1727904810312,0.29074748,61010.0,61009.0,0.001634]
[1727904810758,0.31644684,61010.0,61009.0,0.001634]
[1727904811752,0.29074748,61010.0,61009.0,0.001634]
[1727904812002,0.56467743,61010.0,61009.0,0.001634]
[1727904812272,0.31844681,61010.0,61009.0,0.001634]
[1727904812510,0.60463352,61010.0,61009.0,0.001634]
[1727904812769,0.68053352,61010.0,61009.0,0.001634]
[1727904813022,0.68153352,61010.0,61009.0,0.001634]
[1727904813307,0.68053352,61010.0,61009.0,0.001634]
[1727904813529,0.68053352,61010.0,61000.0,4e-05]
[1727904813530,0.29277148,61001.0,61000.0,4e-05]
[1727904814331,0.31847765,61001.0,61000.0,4e-05]
[1727904815101,0.29277148,61001.0,61000.0,4e-05]
[1727904815593,0.29377148,61001.0,61000.0,0.00104]
[1727904815827,0.29477148,61001.0,61000.0,0.00104]
[1727904817056,0.38821149,61001.0,61000.0,0.00104]
[1727904818286,0.41391835,61001.0,61000.0,0.00104]
[1727904818780,0.19333711,61001.0,61000.0,0.00104]
[1727904819023,0.19333711,61001.0,61000.0,0.246374]
[1727904819024,0.02770686,61001.0,61000.0,0.246374]
[1727904819280,0.02970686,61001.0,61000.0,0.246374]
[1727904819749,0.02570686,61001.0,61000.0,0.246374]
[1727904819985,0.02740611,61001.0,61000.0,0.246374]
[1727904820225,0.02640611,61001.0,61000.0,0.246374]
[1727904820474,0.02570686,61001.0,61000.0,0.246374]
[1727904820712,0.02870686,61001.0,61000.0,0.337374]
[1727904820956,0.02870686,61001.0,61000.0,0.665244]
[1727904821890,0.02570686,61001.0,61000.0,0.665244]
[1727904822112,0.02670686,61001.0,61000.0,0.665244]
[1727904822337,0.02770686,61001.0,61000.0,0.676244]
[1727904822846,0.02670686,61001.0,61000.0,0.665244]
[1727904823065,0.02670686,61001.0,61000.0,0.679244]
[1727904823066,0.02770686,61001.0,61000.0,0.679244]
[1727904823562,0.02670686,61001.0,61000.0,0.665244]
[1727904823789,0.02770686,61001.0,61000.0,0.679244]
[1727904824009,0.002,61001.0,61000.0,0.679244]
[1727904825357,0.002,61001.0,61000.0,0.68088]
[1727904827165,0.02770073,61001.0,61000.0,0.68088]
[1727904829216,0.002,61001.0,61000.0,0.68088]
[1727904837261,0.02770081,61001.0,61000.0,0.68088]
[1727904837976,0.02840006,61001.0,61000.0,0.68088]
[1727904838934,0.02770081,61001.0,61000.0,0.68088]
[1727904843847,0.002,61001.0,61000.0,0.68088]
[1727904846374,0.00269925,61001.0,61000.0,0.68088]
[1727904846616,0.002,61001.0,61000.0,0.68088]
[1727904847335,0.02770128,61001.0,61000.0,0.68088]
[1727904849669,0.02770128,61001.0,61000.0,0.58988]
[1727904849897,0.002,61001.0,61000.0,0.58988]
[1727904850333,0.00269925,61001.0,61000.0,0.58988]
[1727904850557,0.002,61001.0,61000.0,0.58988]
[1727904857046,0.02770105,61001.0,61000.0,0.58988]
[1727904863251,0.02770105,61001.0,61000.0,0.68408]
[1727904863522,0.002,61001.0,61000.0,0.68408]
[1727904864861,0.002,61001.0,61000.0,0.65408]
[1727904866905,0.02770093,61001.0,61000.0,0.65408]
[1727904867241,0.02770093,61001.0,61000.0,0.55988]
[1727904867475,0.02840018,61001.0,61000.0,0.55988]
[1727904867905,0.002,61001.0,61000.0,0.55988]
[1727904869968,0.02770036,61001.0,61000.0,0.55988]
[1727904870699,0.19233061,61001.0,61000.0,0.343506]
[1727904870919,0.26625043,61001.0,61000.0,0.343506]
[1727904871127,0.19233061,61001.0,61000.0,0.343506]
[1727904871346,0.31857499,61001.0,61000.0,0.343506]
[1727904871789,0.36697288,61001.0,61000.0,0.343506]
[1727904872200,0.31857499,61001.0,61000.0,0.343506]
[1727904872412,0.31757499,61001.0,61000.0,0.343506]
[1727904872639,0.31757499,61001.0,61000.0,0.329506]
[1727904872852,0.31657499,61001.0,61000.0,0.329506]
[1727904873063,0.31757499,61001.0,61000.0,0.339506]
[1727904873264,0.31857499,61001.0,61000.0,0.339506]
[1727904873476,0.31757499,61001.0,61000.0,0.329506]
[1727904873676,0.29187463,61001.0,61000.0,0.329506]
[1727904873898,0.34024962,61001.0,61000.0,0.329506]
[1727904874126,0.41564962,61001.0,61000.0,0.329506]
[1727904874337,0.50974962,61001.0,61000.0,0.337506]
[1727904874578,0.46137463,61001.0,61000.0,0.337506]
[1727904874789,0.5107319,61001.0,61000.0,0.337506]
[1727904875222,0.5117319,61001.0,61000.0,0.337506]
[1727904875875,0.5107319,61001.0,61000.0,0.329506]
[1727904876085,0.5117319,61001.0,61000.0,0.335506]
[1727904876920,0.53743636,61001.0,61000.0,0.335506]
[1727904877774,0.53943636,61001.0,61000.0,0.335506]
[1727904878486,0.53743636,61001.0,61000.0,0.335506]
[1727904878704,0.53943636,61001.0,61000.0,0.335506]
[1727904883342,0.66024478,61001.0,61000.0,0.335506]
[1727904883569,0.58618305,61001.0,61000.0,0.335506]
[1727904883789,0.58618273,61001.0,61000.0,0.335506]
[1727904884694,0.58818273,61001.0,61000.0,0.335506]
[1727904885164,0.58900073,61001.0,61000.0,0.335506]
[1727904886364,0.46619263,61001.0,61000.0,0.335506]
[1727904886838,0.49189818,61001.0,61000.0,0.335506]
[1727904889405,0.59010024,61001.0,61000.0,0.335506]
[1727904892208,0.49189818,61001.0,61000.0,0.335506]
[1727904892679,0.66291874,61001.0,61000.0,0.335506]
[1727904894480,0.54015989,61001.0,61000.0,0.335506]
[1727904894685,0.66291874,61001.0,61000.0,0.335506]
[1727904894901,0.66291874,61001.0,61000.0,0.31447974]
[1727904894902,0.66315989,61001.0,61000.0,0.31447974]
[1727904895106,0.92648505,61001.0,61000.0,0.31447974]
[1727904895314,1.07379567,61001.0,61000.0,0.31447974]
[1727904895667,1.07279567,61001.0,61000.0,0.30847974]
[1727904896133,1.07179567,61001.0,61000.0,0.30847974]
[1727904896398,1.07179567,61001.0,60993.0,0.001634]
[1727904896399,0.00269925,60994.0,60993.0,0.001634]
[1727904896622,0.58569363,60994.0,60993.0,0.001634]
[1727904896863,0.58569363,60994.0,60988.0,0.001632]
[1727904896864,0.45946225,60989.0,60988.0,0.001632]
[1727904897100,0.58570663,60989.0,60988.0,0.001632]
[1727904897328,0.86792334,60989.0,60988.0,0.001632]
[1727904897560,0.9660793,60989.0,60988.0,0.001632]
[1727904898039,0.96608032,60989.0,60988.0,0.001632]
[1727904898274,0.99179293,60989.0,60988.0,0.001632]
[1727904898532,0.89363595,60989.0,60988.0,0.001632]
[1727904898776,0.96608032,60989.0,60988.0,0.001632]
[1727904899002,0.81089361,60989.0,60988.0,0.001632]
[1727904899453,0.71273663,60989.0,60988.0,0.001632]
[1727904899671,0.71173663,60989.0,60988.0,0.001632]
[1727904899907,0.72073663,60989.0,60988.0,0.001632]
[1727904900172,0.71373663,60989.0,60988.0,0.001632]
[1727904900410,0.7813467,60989.0,60988.0,0.001632]
[1727904901133,0.7723467,60989.0,60988.0,0.001632]
[1727904901617,0.7903467,60989.0,60988.0,0.001632]
[1727904902067,0.7823467,60989.0,60988.0,0.001632]
[1727904902288,0.7913467,60989.0,60988.0,0.001632]
[1727904902965,0.81706109,60989.0,60988.0,0.001632]
[1727904903411,0.89059627,60989.0,60988.0,0.001632]
[1727904903638,0.87248627,60989.0,60988.0,0.001632]
[1727904904333,0.8624769,60989.0,60988.0,0.001632]
[1727904904549,0.8644769,60989.0,60988.0,0.001632]
[1727904904992,0.79995109,60989.0,60988.0,0.001632]
[1727904905434,0.87346952,60989.0,60988.0,0.001632]
[1727904905662,0.79995109,60989.0,60988.0,0.001632]
[1727904906335,0.84820767,60989.0,60988.0,0.001632]
[1727904906599,0.97080876,60989.0,60988.0,0.001632]
[1727904906878,0.84820767,60989.0,60988.0,0.001632]
[1727904907102,0.82249328,60989.0,60988.0,0.001632]
[1727904907318,0.94500813,60989.0,60988.0,0.001632]
[1727904907544,0.82249328,60989.0,60988.0,0.001632]
[1727904908468,0.94500486,60989.0,60988.0,0.001632]
[1727904908708,0.82249328,60989.0,60988.0,0.001632]
[1727904909206,0.81349328,60989.0,60988.0,0.001632]
[1727904909452,0.93600481,60989.0,60988.0,0.001632]
[1727904909896,0.92500481,60989.0,60988.0,0.001632]
[1727904910120,0.96071878,60989.0,60988.0,0.001632]
[1727904910394,0.83820725,60989.0,60988.0,0.001632]
[1727904911299,0.84920725,60989.0,60988.0,0.001632]
[1727904911523,0.84920725,60989.0,60966.0,0.0757]
[1727904911524,0.00269925,60978.0,60977.0,0.001132]
[1727904911769,0.39293663,60978.0,60977.0,0.001132]
[1727904912232,0.41865148,60978.0,60977.0,0.001132]
[1727904912954,0.41865148,60978.0,60977.0,0.002132]
[1727904913423,0.44165148,60978.0,60977.0,0.002132]
[1727904913877,0.60483819,60978.0,60977.0,0.002132]
[1727904914572,0.65785566,60978.0,60977.0,0.001132]
[1727904914804,0.61283819,60978.0,60977.0,0.001132]
[1727904915019,0.6903644,60978.0,60977.0,0.001132]
[1727904915244,0.6863644,60978.0,60977.0,0.001132]
[1727904915491,0.60983819,60978.0,60977.0,0.001132]
[1727904915723,0.61483819,60978.0,60977.0,0.001132]
[1727904915969,0.58412334,60978.0,60977.0,0.001132]
[1727904916196,0.58812334,60978.0,60977.0,0.001132]
[1727904916643,0.58612334,60978.0,60977.0,0.001132]
[1727904916898,0.66360424,60978.0,60977.0,0.001132]
[1727904917369,0.66560424,60978.0,60977.0,0.001132]
[1727904917595,0.66160424,60978.0,60977.0,0.001132]
[1727904917817,0.66660424,60978.0,60977.0,0.001132]
[1727904918053,0.66460424,60978.0,60977.0,0.001132]
[1727904918279,0.65960424,60978.0,60977.0,0.001132]
[1727904918502,0.65460424,60978.0,60977.0,0.001132]
[1727904918721,0.65660424,60978.0,60977.0,0.001132]
[1727904918941,0.65760424,60978.0,60977.0,0.001132]
[1727904919170,0.66060424,60978.0,60977.0,0.001132]